fUSD/lending_fUSD_20250804
["ID","MTS","AMOUNT","RATE_DAILY","PERIOD"]
[377328810,1754349045162,-625.42636932,0.0004927,50]
[377328812,1754349045173,-279.89771197,0.0004927,50]
[377328815,1754349045184,-1766.78714144,0.0004927,50]
[377328817,1754349045196,-3993.14517615,0.0004927,50]
[377328819,1754349045207,-3449.99999999,0.0004927,50]
[377328821,1754349045218,-15702.36688483,0.0004927,50]
[377328823,1754349045230,-963.24044656,0.0004927,50]
[377328828,1754349045270,-1034.355,0.0004927,50]
[377328830,1754349045281,-2709.95238278,0.0004927,50]
[377328832,1754349045290,-1000.0,0.000493,17]
[377328834,1754349045299,-2513.99880624,0.000493,120]
[377328837,1754349045311,-500.0,0.000493,120]
[377328839,1754349045322,-577.46205938,0.000493,120]
[377328841,1754349045334,-291.71752767,0.000493,120]
[377328844,1754349045350,-9169.81847655,0.000493,120]
[377328846,1754349045361,-3973.6988002,0.000493,120]
[377328850,1754349045388,-9973.30432996,0.000493,120]
[377328852,1754349045398,-204.9887739,0.000493,60]
[377328854,1754349045408,-204.9887739,0.0004938,60]
[377328856,1754349045418,-2059.32322,0.0004939,46]
[377328858,1754349045427,-1717.88034828,0.00049396,2]
[377328860,1754349045436,-2000.0,0.000494,18]
[377328862,1754349045447,-5000.0,0.00049457,120]
[377328864,1754349045458,-204.9887739,0.0004946,60]
[377328866,1754349045468,-194.74,0.0004946,30]
[377328868,1754349045478,-194.74,0.00049464,30]
[377328870,1754349045487,-194.74,0.00049465,30]
[377328873,1754349045497,-194.74,0.00049465,30]
[377328876,1754349045506,-194.74,0.00049466,30]
[377328879,1754349045515,-150.59122118,0.0004947,120]
[377328882,1754349045526,-4123.93330095,0.0004947,2]
[377328884,1754349045536,-1762.5880895,0.0004947,2]
[377328886,1754349045546,-368.48024654,0.0004947,2]
[377328888,1754349045557,-845.71548534,0.0004947,2]
[377328890,1754349045567,-10495.18280161,0.0004947,2]
[377328892,1754349045576,-431.42997727,0.0004947,10]
[377328894,1754349045585,-190.87492573,0.0004947,120]
[377328896,1754349045595,-247.94206263,0.0004947,120]
[377328898,1754349045605,-247.94206263,0.0004947,120]
[377328900,1754349045615,-247.94206263,0.0004947,120]
[377328902,1754349045624,-247.94206263,0.0004947,120]
[377328904,1754349045634,-247.94206263,0.0004947,120]
[377328906,1754349045644,-247.94206263,0.0004947,120]
[377328908,1754349045653,-247.94206263,0.0004947,120]
[377328910,1754349045662,-247.94206263,0.0004947,120]
[377328912,1754349045672,-247.94206263,0.0004947,120]
[377328914,1754349045682,-247.94206263,0.0004947,120]
[377328916,1754349045692,-247.94206263,0.0004947,120]
[377328918,1754349045701,-247.94206263,0.0004947,120]
[377328920,1754349045710,-247.94206263,0.0004947,120]
[377328921,1754349045719,-247.94206263,0.0004947,120]
[377328923,1754349045730,-247.94206263,0.0004947,120]
[377328926,1754349045740,-247.94206263,0.0004947,120]
[377328927,1754349045750,-247.94206263,0.0004947,120]
[377328930,1754349045759,-247.94206263,0.0004947,120]
[377328931,1754349045770,-247.94206263,0.0004947,120]
[377328934,1754349045780,-247.94,0.0004947,120]
[377328936,1754349045790,-578.53147948,0.0004947,120]
[377328938,1754349045800,-578.53147948,0.0004947,120]
[377328939,1754349045810,-578.53147948,0.0004947,120]
[377328941,1754349045822,-578.53147948,0.0004947,120]
[377328943,1754349045836,-578.53147948,0.0004947,120]
[377328945,1754349045845,-578.53147948,0.0004947,120]
[377328947,1754349045855,-578.53147948,0.0004947,120]
[377328950,1754349045864,-578.53147948,0.0004947,120]
[377328951,1754349045878,-578.53147948,0.0004947,120]
[377328954,1754349045888,-578.53147948,0.0004947,120]
[377328956,1754349045897,-578.53147948,0.0004947,120]
[377328958,1754349045907,-578.53147948,0.0004947,120]
[377328959,1754349045917,-578.53147948,0.0004947,120]
[377328962,1754349045926,-578.53147948,0.0004947,120]
[377328964,1754349045936,-578.53147948,0.0004947,120]
[377328966,1754349045947,-578.53147948,0.0004947,120]
[377328968,1754349045956,-578.53147948,0.0004947,120]
[377328969,1754349045966,-578.53147948,0.0004947,120]
[377328972,1754349045975,-578.53147948,0.0004947,120]
[377328974,1754349045986,-3276.11476017,0.00049471,15]
[377328976,1754349045996,-597.61593434,0.00049471,15]
[377328978,1754349046005,-169.12106724,0.00049471,28]
[377328979,1754349046015,-40455.73726039,0.00049474,4]
[377328980,1754349046027,-849.35927867,0.00049474,4]
[377328981,1754349046039,-288.95273174,0.00049474,4]
[377328982,1754349046049,-2163.61129361,0.00049475,4]
[377329097,1754349047225,-450.0,0.00049474,90]
[377329104,1754349047289,-631.97269762,0.00049474,90]
[377329106,1754349047299,-1542.29441092,0.00049475,4]
[377329129,1754349047514,-164.8,0.0004331,5]
[377329131,1754349047524,-277.444066,0.00049475,4]
[377329145,1754349047649,-957.9187163,0.00049475,4]
[377329148,1754349047662,-10410.75234343,0.00049475,4]
[377329150,1754349047674,-10702.48560775,0.00049475,4]
[377329152,1754349047686,-1176.50811457,0.00049475,4]
[377329155,1754349047698,-30386.60695655,0.00049475,4]
[377329157,1754349047710,-500.0,0.00049475,4]
[377329159,1754349047726,-52799.84321287,0.00049475,4]
[377329161,1754349047737,-14117.7441634,0.00049475,4]
[377329163,1754349047747,-27729.3661805,0.00049476,4]
[377329165,1754349047758,-28235.4883268,0.00049476,4]
[377329168,1754349047768,-213.63906195,0.00049476,7]
[377329170,1754349047778,-150.6,0.00049476,120]
[377329172,1754349047788,-88888.0,0.00049477,120]
[377329174,1754349047798,-400.0,0.00049483,120]
[377329176,1754349047808,-547.4,0.00049483,120]
[377329178,1754349047818,-400.0,0.00049483,2]
[377329180,1754349047828,-465.77145334,0.00049483,120]
[377329182,1754349047837,-2739.21,0.00049483,120]
[377329184,1754349047848,-400.0,0.00049483,120]
[377329186,1754349047857,-1079.27,0.00049483,120]
[377329188,1754349047867,-400.0,0.00049483,2]
[377329190,1754349047880,-400.0,0.00049483,120]
[377329192,1754349047890,-442.82288127,0.00049483,120]
[377329194,1754349047900,-400.0,0.00049483,2]
[377329196,1754349047909,-406.80388843,0.00049483,120]
[377329198,1754349047919,-1399.42,0.00049483,120]
[377329200,1754349047928,-400.0,0.00049483,120]
[377329202,1754349047938,-716.47,0.00049483,120]
[377329204,1754349047948,-400.0,0.00049483,120]
[377329206,1754349047957,-400.0,0.00049483,120]
[377329208,1754349047967,-1624.64,0.00049483,120]
[377329210,1754349047977,-400.0,0.00049483,120]
[377329213,1754349047990,-400.0,0.00049483,120]
[377329215,1754349048012,-254685.07932396,0.00049484,120]
[377329217,1754349048022,-500.0,0.00049484,120]
[377329219,1754349048033,-479.13212837,0.00049484,120]
[377329222,1754349048044,-500.0,0.00049484,120]
[377329224,1754349048055,-310.1482945,0.00049484,120]
[377329226,1754349048066,-1231.82,0.00049485,120]
[377329228,1754349048077,-1184.88,0.00049485,30]
[377329230,1754349048087,-400.0,0.00049485,120]
[377329232,1754349048098,-2324.11,0.00049485,120]
[377329234,1754349048109,-400.0,0.00049485,120]
[377329236,1754349048120,-400.0,0.00049485,120]
[377329238,1754349048131,-1320.22,0.00049485,120]
[377329240,1754349048141,-400.0,0.00049485,120]
[377329241,1754349048151,-1259.5,0.00049485,120]
[377329242,1754349048162,-400.0,0.00049485,120]
[377329243,1754349048172,-1571.82,0.00049485,120]
[377329244,1754349048183,-400.0,0.00049485,120]
[377329245,1754349048193,-5432.47,0.00049485,120]
[377329246,1754349048203,-638.8,0.00049485,120]
[377329247,1754349048213,-645.96,0.00049485,120]
[377329248,1754349048223,-2641.79,0.00049485,120]
[377329249,1754349048235,-1875.53,0.00049485,120]
[377329251,1754349048245,-978.5,0.00049485,120]
[377329253,1754349048255,-400.0,0.00049485,120]
[377329255,1754349048265,-955.9,0.00049485,120]
[377329258,1754349048276,-400.0,0.00049485,120]
[377329260,1754349048286,-400.0,0.00049485,120]
[377329262,1754349048296,-3077.93,0.00049485,120]
[377329264,1754349048308,-624.07,0.00049485,120]
[377329266,1754349048318,-5031.86,0.00049485,120]
[377329268,1754349048327,-400.0,0.00049485,120]
[377329270,1754349048338,-724.45,0.00049485,120]
[377329272,1754349048347,-400.0,0.00049485,120]
[377329274,1754349048357,-400.0,0.00049485,120]
[377329275,1754349048367,-462.91,0.00049485,120]
[377329276,1754349048378,-3096.19,0.00049485,120]
[377329277,1754349048393,-714.74,0.00049485,120]
[377329278,1754349048404,-3460.04,0.00049485,120]
[377329279,1754349048415,-622.87,0.00049485,120]
[377329280,1754349048426,-1906.86,0.00049485,120]
[377329281,1754349048436,-400.69740565,0.00049485,120]
[377329282,1754349048447,-400.0,0.00049485,120]
[377329283,1754349048461,-2699.04,0.00049485,120]
[377329284,1754349048472,-400.0,0.00049485,120]
[377329285,1754349048483,-3499.39,0.00049485,120]
[377329286,1754349048494,-1000.0,0.00049485,120]
[377329287,1754349048505,-2433.84,0.00049485,120]
[377329288,1754349048518,-1528.86,0.00049485,120]
[377329289,1754349048530,-28112.72,0.00049485,120]
[377329290,1754349048540,-494.01,0.00049485,120]
[377329291,1754349048551,-1116.49,0.00049485,120]
[377329292,1754349048562,-400.0,0.00049485,120]
[377329293,1754349048573,-1116.62,0.00049485,120]
[377329294,1754349048584,-3058.09,0.00049485,120]
[377329295,1754349048595,-8293.3,0.00049485,120]
[377329296,1754349048606,-400.0,0.00049485,120]
[377329297,1754349048616,-441.11,0.00049485,120]
[377329298,1754349048628,-2836.77,0.00049485,120]
[377329299,1754349048638,-151.10520056,0.00049485,120]
[377329300,1754349048650,-400.0,0.00049485,120]
[377329301,1754349048660,-500.0,0.00049485,120]
[377329302,1754349048671,-500.0,0.00049485,120]
[377329303,1754349048682,-400.0,0.00049485,120]
[377329304,1754349048692,-400.0,0.00049485,120]
[377329305,1754349048703,-4221.95,0.00049485,120]
[377329306,1754349048713,-400.0,0.00049485,120]
[377329307,1754349048724,-1336.4,0.00049485,120]
[377329308,1754349048734,-2340.36,0.00049485,120]
[377329309,1754349048744,-926.28,0.00049485,120]
[377329311,1754349048755,-2753.48,0.00049485,120]
[377329313,1754349048766,-603.45,0.00049485,120]
[377329314,1754349048776,-1712.08,0.00049485,120]
[377329315,1754349048786,-1214.79,0.00049485,120]
[377329316,1754349048797,-1214.79,0.00049485,120]
[377329317,1754349048807,-400.0,0.00049485,120]
[377329318,1754349048823,-400.0,0.00049485,120]
[377329319,1754349048834,-1389.82,0.00049485,120]
[377329320,1754349048845,-400.0,0.00049485,120]
[377329321,1754349048856,-400.0,0.00049485,120]
[377329322,1754349048867,-400.0,0.00049485,120]
[377329323,1754349048882,-400.0,0.00049485,120]
[377329324,1754349048894,-10489.16,0.00049485,120]
[377329325,1754349048906,-529.7,0.00049485,120]
[377329326,1754349048919,-400.0,0.00049485,120]
[377329327,1754349048930,-2941.52,0.00049485,120]
[377329328,1754349048941,-1426.65,0.00049485,120]
[377329329,1754349048953,-597.42,0.00049485,120]
[377329330,1754349048964,-1000.0,0.00049485,120]
[377329331,1754349048975,-400.0,0.00049485,120]
[377329332,1754349048987,-277.19352003,0.00049485,120]
[377329333,1754349050394,-400.0,0.00049483,120]
[377329334,1754349050405,-122.80647997,0.00049485,120]
[377329335,1754349050416,-400.0,0.00049485,120]
[377329336,1754349050426,-346.19352003,0.00049485,120]
[377329337,1754349050438,-87.67647997,0.00049485,120]
[377329338,1754349050448,-400.0,0.00049485,120]
[377329339,1754349050458,-257.93287003,0.00049485,120]
[377329340,1754349050565,-303.20712997,0.00049485,120]
[377329341,1754349050575,-514.53137994,0.00049485,120]
[377329342,1754349050588,-474.78,0.00049485,120]
[377329343,1754349050612,-369.64862006,0.00049485,120]
[377329344,1754349050622,-507.23,0.00049485,120]
[377329345,1754349050632,-1675.12,0.00049485,120]
[377329346,1754349050642,-400.0,0.00049485,120]
[377329347,1754349050652,-871.9,0.00049485,120]
[377329348,1754349050662,-2812.07,0.00049485,120]
[377329349,1754349050672,-1795.70543296,0.00049485,120]
[377329350,1754349050685,-41.86456704,0.00049485,120]
[377329351,1754349050694,-504.01,0.00049485,120]
[377329352,1754349050704,-2310.36711951,0.00049485,120]
[377329353,1754349050716,-98.14288049,0.00049485,120]
[377329354,1754349050726,-4205.27,0.00049485,120]
[377329355,1754349050737,-3168.2,0.00049485,120]
[377329356,1754349050747,-1613.69,0.00049485,120]
[377329357,1754349050758,-400.0,0.00049485,120]
[377329358,1754349050768,-3405.95,0.00049485,120]
[377329359,1754349050779,-545.42,0.00049485,120]
[377329360,1754349050789,-6952.52,0.00049485,120]
[377329361,1754349050798,-400.0,0.00049485,120]
[377329362,1754349050810,-1065.85,0.00049485,120]
[377329363,1754349050821,-400.0,0.00049485,120]
[377329364,1754349050831,-400.0,0.00049485,120]
[377329365,1754349050841,-400.0,0.00049485,120]
[377329366,1754349050851,-400.0,0.00049485,120]
[377329367,1754349050861,-524.43,0.00049485,120]
[377329368,1754349050871,-159.71663231,0.00049485,120]
[377329369,1754349053718,-240.28336769,0.00049485,120]
[377329370,1754349053727,-400.0,0.00049485,120]
[377329371,1754349053738,-400.0,0.00049485,120]
[377329372,1754349053748,-19.38434532,0.00049485,120]
[377329373,1754349053759,-380.61565468,0.00049485,120]
[377329374,1754349053769,-3564.88,0.00049485,120]
[377329375,1754349053778,-4198.0,0.00049485,120]
[377329376,1754349053787,-1675.67713714,0.00049485,120]
[377329377,1754349053799,-1533.79286286,0.00049485,120]
[377329378,1754349053808,-3057.68,0.00049485,120]
[377329379,1754349053817,-3026.93,0.00049485,120]
[377329380,1754349053827,-400.0,0.00049485,120]
[377329381,1754349053836,-400.0,0.00049485,120]
[377329382,1754349053845,-2492.06,0.00049485,120]
[377329383,1754349053854,-705.11,0.00049485,120]
[377329384,1754349053863,-808.53,0.00049485,120]
[377329385,1754349053873,-898.5,0.00049485,120]
[377329386,1754349053883,-7370.18793669,0.00049485,120]
[377329387,1754349053902,-489.35206331,0.00049485,120]
[377329388,1754349053911,-296.77080919,0.00049485,120]
[377329389,1754349053922,-808.77919081,0.00049485,120]
[377329390,1754349053933,-400.0,0.00049485,120]
[377329391,1754349053952,-74.10366396,0.00049485,120]
[377329392,1754349055965,-666.10633604,0.00049485,120]
[377329393,1754349055975,-400.0,0.00049485,120]
[377329394,1754349055984,-2155.80963883,0.00049485,120]
[377329395,1754349057119,-1040.19036117,0.00049485,120]
[377329396,1754349057129,-1338.08,0.00049485,120]
[377329397,1754349057139,-1711.60101468,0.00049485,120]
[377329403,1754349352457,154.75,0.00013699,2]
[377329404,1754349366887,840.89292632,0.00030137,7]
[377329405,1754349370583,-217.092,0.0003475,2]
[377329406,1754349370611,-3.52471116,0.0003475,10]
[377329407,1754349373229,-228.82109726,0.0003475,10]
[377329408,1754349373257,-39.97120047,0.00038356,2]
[377329410,1754349379049,-114.77879953,0.00038356,2]
[377329413,1754349462418,273.26732341,0.00030137,7]
[377329431,1754349723780,-228.1,0.00039139,15]
[377329432,1754349723812,-228.1,0.00040562,15]
[377329433,1754349723839,-173.33,0.0004076,2]
[377329446,1754349908226,731.08975027,0.00024,2]
[377329447,1754349909471,-235.10746444,0.00024,2]
[377329448,1754349911084,-179.05451189,0.00024,2]
[377329450,1754349915953,-301.7641245,0.00024,2]
[377329451,1754349919254,-299.34496121,0.00024,2]
[377329453,1754349922507,-152.00883827,0.00024,2]
[377329454,1754349925855,-156.00656724,0.00024,2]
[377329455,1754349926370,3508.40143898,0.000175,2]
[377329457,1754349929638,-151.0,0.00024,2]
[377329458,1754349930200,1000.0,0.00030137,120]
[377329459,1754349933342,-151.0,0.00024,2]
[377329460,1754349936885,-165.80323268,0.00024,2]
[377329461,1754349939932,-272.77151332,0.00024,2]
[377329463,1754349943910,-276.712627,0.00024,2]
[377329464,1754349948308,-308.712627,0.00024,2]
[377329465,1754349949443,-187.05247267,0.00024,2]
[377329466,1754349951773,365.17446928,0.0003013,120]
[377329467,1754349961305,1000.0,0.000264,120]
[377329468,1754349961360,1000.0,0.000245,120]
[377329469,1754349962420,-50000.0,0.00024,2]
[377329470,1754349968721,-6917.56430275,0.00024,2]
[377329471,1754349968748,-202.43052867,0.00025,2]
[377329472,1754349972720,616.12185794,0.000249,12]
[377329473,1754349972816,616.12185772,0.00025797,13]
[377329474,1754349972927,616.12185772,0.00026693,15]
[377329475,1754349973104,616.12185772,0.0002759,17]
[377329476,1754349973257,616.12185772,0.00028486,19]
[377329477,1754349973386,616.12185772,0.00029383,20]
[377329481,1754350059168,33210.09450742,0.00018,2]
[377329483,1754350075594,9669.91066116,0.00018,2]
[377329484,1754350075620,50000.0,0.00018,2]
[377329485,1754350075645,1563.57614499,0.00018,2]
[377329486,1754350079721,114863.46306073,0.00019,2]
[377329487,1754350079748,50000.0,0.00019,2]
[377329488,1754350079774,50000.0,0.00019,2]
[377329489,1754350079813,2250.0,0.00019,2]
[377329490,1754350079840,50000.0,0.00019,2]
[377329491,1754350079862,50000.0,0.00019,2]
[377329492,1754350079888,175052.83247489,0.00019,2]
[377329493,1754350085211,-271.55355937,0.00022145,2]
[377329494,1754350087944,-155.25194993,0.00022145,2]
[377329495,1754350090091,-73.1944907,0.00022145,2]
[377329496,1754350090119,-284.75795708,0.00022145,2]
[377329497,1754350094766,-19.24287961,0.00022145,2]
[377329498,1754350094793,-151.26628714,0.00022145,2]
[377329499,1754350096526,-210.08099618,0.00022145,2]
[377329500,1754350098718,-174.65327448,0.00022145,2]
[377329501,1754350118871,8718.75517763,0.000151,2]
[377329502,1754350124304,10989.32359777,0.00019,2]
[377329503,1754350125741,5054.16025833,0.00019,2]
[377329504,1754350126096,-162.05542524,0.000232,2]
[377329505,1754350127775,-151.0,0.000232,2]
[377329506,1754350141481,-240.50250858,0.000232,2]
[377329507,1754350143734,-260.04811075,0.000232,2]
[377329508,1754350145903,-194.31927988,0.000232,2]
[377329509,1754350148606,-208.31672279,0.000232,2]
[377329510,1754350150883,-249.28080928,0.000232,2]
[377329511,1754350153102,-151.33,0.000232,2]
[377329512,1754350154701,-159.49749142,0.000232,2]
[377329513,1754350157410,-4119.92588406,0.000232,2]
[377329514,1754350157604,-282.95393583,0.000232,2]
[377329515,1754350161084,-290.59753627,0.000232,2]
[377329516,1754350163451,-288.25847511,0.000232,2]
[377329524,1754350231964,-308.712627,0.00023084,2]
[377329525,1754350231974,-1200.0,0.00023199,2]
[377329526,1754350231984,-200.0,0.00023199,2]
[377329527,1754350231994,-300.0,0.00023199,2]
[377329528,1754350232004,-1336.50653231,0.000232,2]
[377329529,1754350232015,-3478.75360929,0.000232,2]
[377329530,1754350232031,-39386.30123755,0.000232,2]
[377329531,1754350232042,-1200.0,0.00025295,2]
[377329532,1754350232052,-479.10535865,0.00035,2]
[377329533,1754350232063,-3772.19464135,0.00035,2]
[377329534,1754350232073,-161.57,0.0003601,7]
[377329535,1754350232082,-1600.0,0.00036985,3]
[377329536,1754350232092,-1464.0,0.00036986,120]
[377329537,1754350232103,-316.52,0.00038356,2]
[377329538,1754350232113,-1330.79003852,0.00038356,2]
[377329539,1754350232126,-669.20996148,0.00038356,2]
[377329540,1754350232139,-726.469,0.00038356,2]
[377329541,1754350232148,-155.0,0.00038456,2]
[377329542,1754350232158,-151.0,0.00038456,2]
[377329543,1754350232167,-448.40440422,0.00038456,120]
[377329544,1754350232178,-4155.97564123,0.00038456,30]
[377329545,1754350232187,-190.1,0.00039136,15]
[377329546,1754350232197,-677.0,0.00039575,5]
[377329547,1754350232207,-11022.0,0.000398,2]
[377329548,1754350232217,-7572.0,0.0004,8]
[377329549,1754350232227,-841.59890878,0.0004016,2]
[377329550,1754350232236,-190.1,0.00040559,15]
[377329551,1754350232246,-5510.0,0.000409,3]
[377329552,1754350232256,-179.3709631,0.00041038,2]
[377329554,1754350232268,-4291.3751585,0.00041038,2]
[377329556,1754350232280,-803.51,0.00041038,2]
[377329557,1754350232294,-3712.3399587,0.00041038,2]
[377329560,1754350232306,-3515.86089306,0.00041038,2]
[377329563,1754350232324,-1346.15532581,0.00041038,2]
[377329567,1754350232359,-603.84235597,0.00041038,2]
[377329571,1754350232392,-3250.00002,0.00041038,2]
[377329654,1754350238101,-544.74333648,0.00041038,2]
[377329655,1754350238113,-400.99999879,0.00041038,2]
[377329656,1754350238124,-488.66430191,0.00041038,2]
[377329657,1754350238136,-521.6,0.00041038,2]
[377329661,1754350238321,-604.88750055,0.00041038,2]
[377329662,1754350238335,-1800.0,0.00041038,2]
[377329664,1754350238347,-312.507,0.00041038,2]
[377329676,1754350238458,-1265.04893029,0.00041038,2]
[377329678,1754350238470,-301.44392481,0.00041038,2]
[377329680,1754350238482,-358.33485164,0.00041038,2]
[377329684,1754350238512,-10702.724764,0.00041038,2]
[377329687,1754350238523,-3052.84291751,0.00041038,2]
[377329689,1754350238535,-11425.82128556,0.00041038,2]
[377329691,1754350238549,-1593.57450396,0.00041038,2]
[377329695,1754350238581,-10245.05959596,0.00041038,2]
[377329697,1754350238592,-393.56,0.00041067,2]
[377329699,1754350238602,-723.26533946,0.000416,2]
[377329700,1754350238611,-1083.0,0.00041912,30]
[377329702,1754350238620,-190.1,0.00041983,120]
[377329704,1754350238630,-5510.0,0.000421,5]
[377329706,1754350238640,-393.56,0.00042797,120]
[377329708,1754350238650,-190.1,0.00043406,120]
[377329710,1754350238661,-2300.0,0.00043834,60]
[377329712,1754350238671,-10000.0,0.00044,7]
[377329714,1754350238680,-159.47,0.00044067,2]
[377329716,1754350238691,-1083.0,0.00044117,30]
[377329718,1754350238700,-2300.0,0.00044382,60]
[377329720,1754350238710,-968.97,0.00044386,2]
[377329722,1754350238720,-393.56,0.00044527,120]
[377329724,1754350238730,-444.74565378,0.00044706,2]
[377329726,1754350238740,-190.1,0.0004483,120]
[377329728,1754350238750,-2300.0,0.0004493,60]
[377329730,1754350238760,-1067.1049251,0.00045223,6]
[377329732,1754350238770,-2300.0,0.00045478,60]
[377329734,1754350238779,-199.0,0.00046145,2]
[377329736,1754350238789,-718.16,0.00046147,30]
[377329738,1754350238801,-190.1,0.00046253,120]
[377329740,1754350238811,-393.56,0.00046258,120]
[377329742,1754350238822,-595.621,0.00046258,76]
[377329744,1754350238831,-1083.0,0.00046439,30]
[377329746,1754350238840,-2300.0,0.00046574,60]
[377329748,1754350238851,-2600.0,0.00046574,60]
[377329750,1754350238860,-291.50112421,0.00046621,2]
[377329752,1754350238870,-23900.0,0.00046646,2]
[377329754,1754350238880,-1460.93,0.00046728,2]
[377329756,1754350238890,-175.0,0.00046795,7]
[377329758,1754350238900,-250.0,0.00046812,120]
[377329760,1754350238909,-845.28041933,0.0004682,120]
[377329762,1754350238919,-502.0,0.00046877,10]
[377329764,1754350238929,-512.0,0.00046877,10]
[377329766,1754350238939,-845.28041933,0.00046991,120]
[377329768,1754350238948,-946.0,0.00047,2]
[377329770,1754350238958,-1000.0,0.00047,120]
[377329772,1754350238968,-442.41,0.00047103,120]
[377329774,1754350238978,-2600.0,0.00047122,60]
[377329776,1754350238987,-538.86,0.00047151,2]
[377329778,1754350238997,-1000.0,0.00047184,2]
[377329780,1754350239007,-845.28041933,0.00047336,120]
[377329782,1754350239017,-845.28041933,0.00047426,120]
[377329784,1754350239027,-152.0,0.00047561,3]
[377329786,1754350239037,-151.3367022,0.00047577,120]
[377329788,1754350239048,-1373.57990417,0.00047588,120]
[377329790,1754350239058,-2300.0,0.0004767,60]
[377329792,1754350239068,-2600.0,0.0004767,60]
[377329794,1754350239077,-190.1,0.00047677,120]
[377329796,1754350239086,-1000.0,0.000477,14]
[377329798,1754350239096,-845.28041933,0.00047785,120]
[377329800,1754350239105,-1000.0,0.00047832,14]
[377329802,1754350239115,-400.0,0.0004788,100]
[377329804,1754350239125,-927.0,0.0004792,2]
[377329806,1754350239135,-151.33670219,0.00047936,120]
[377329808,1754350239146,-502.0,0.00047971,10]
[377329810,1754350239155,-393.56,0.00047988,120]
[377329812,1754350239165,-1000.0,0.00048,120]
[377329814,1754350239174,-161.0,0.00048,90]
[377329816,1754350239184,-2000.0,0.00048,120]
[377329818,1754350239193,-845.28041933,0.00048144,120]
[377329820,1754350239204,-2600.0,0.00048218,60]
[377329822,1754350239213,-200.02,0.00048219,120]
[377329824,1754350239223,-845.28041933,0.00048242,120]
[377329826,1754350239234,-1000.0,0.00048244,14]
[377329828,1754350239243,-151.33670219,0.00048295,120]
[377329830,1754350239253,-150.0,0.00048384,7]
[377329832,1754350239263,-915.62,0.00048481,120]
[377329834,1754350239273,-308.0,0.000485,120]
[377329836,1754350239283,-800.0,0.000485,17]
[377329838,1754350239292,-150.0,0.00048516,7]
[377329839,1754350239304,-1700.0,0.000486,17]
[377329842,1754350239314,-150.0,0.0004862,7]
[377329844,1754350239323,-845.28041933,0.00048633,120]
[377329845,1754350239335,-187.69,0.0004864,2]
[377329847,1754350239345,-151.33670219,0.00048654,120]
[377329849,1754350239354,-463.70451413,0.00048696,14]
[377329851,1754350239371,-2600.0,0.000487,17]
[377329853,1754350239384,-2300.0,0.00048766,60]
[377329855,1754350239395,-845.28041933,0.00048768,120]
[377329857,1754350239406,-3500.0,0.000488,17]
[377329860,1754350239417,-1067.10492511,0.0004882,7]
[377329861,1754350239427,-150.0,0.00048826,7]
[377329864,1754350239439,-908.0,0.0004884,2]
[377329866,1754350239449,-1083.0,0.00048884,30]
[377329867,1754350239460,-161.55,0.00048889,14]
[377329869,1754350239470,-4400.0,0.000489,17]
[377329871,1754350239480,-150.0,0.00048948,7]
[377329873,1754350239490,-229.0,0.00048984,14]
[377329875,1754350239499,-500.0,0.0004899,120]
[377329878,1754350239509,-333.52,0.00048991,14]
[377329879,1754350239518,-500.0,0.00048992,120]
[377329882,1754350239529,-500.0,0.00048992,120]
[377329901,1754350239836,-500.0,0.00048992,120]
[377329903,1754350239847,-500.0,0.00048992,120]
[377329905,1754350239857,-500.0,0.00048992,120]
[377329907,1754350239866,-500.0,0.00048992,120]
[377329909,1754350239876,-500.0,0.00048992,120]